fUSD/lending_fUSD_20250609
["ID","MTS","AMOUNT","RATE_DAILY","PERIOD"]
[365095271,1749462714702,-1000.0,0.00038356,7]
[365095272,1749462714712,-1000.0,0.00038356,7]
[365095273,1749462714722,-1000.0,0.00038356,7]
[365095274,1749462714732,-1000.0,0.00038356,7]
[365095275,1749462714741,-1000.0,0.00038356,7]
[365095276,1749462714751,-1000.0,0.00038356,7]
[365095277,1749462714760,-1000.0,0.00038356,7]
[365095278,1749462714770,-1000.0,0.00038356,7]
[365095279,1749462714779,-1000.0,0.00038356,7]
[365095280,1749462714790,-1000.0,0.00038356,7]
[365095281,1749462714800,-1000.0,0.00038356,7]
[365095282,1749462714809,-1000.0,0.00038356,7]
[365095283,1749462714818,-1000.0,0.00038356,7]
[365095284,1749462714828,-1000.0,0.00038356,7]
[365095285,1749462714838,-1000.0,0.00038356,7]
[365095286,1749462714847,-1141.55569215,0.00038356,7]
[365095287,1749462714856,-159.842,0.00038356,30]
[365095288,1749462714865,-3522.65869111,0.000384,33]
[365095289,1749462714875,-1200.0,0.000384,2]
[365095290,1749462714887,-526.30192517,0.000384,2]
[365095291,1749462714896,-346.28,0.000384,14]
[365095292,1749462714905,-394.41982277,0.000384,2]
[365095293,1749462714915,-1000.0,0.000385,40]
[365095294,1749462714924,-1500.0,0.0003859,48]
[365095295,1749462714934,-218.0,0.0003862,51]
[365095296,1749462714944,-346.28,0.000387,14]
[365095297,1749462714953,-870.89,0.00038702,2]
[365095298,1749462714964,-260.4103811,0.00038746,2]
[365095299,1749462714975,-1127.00482482,0.0003885,120]
[365095300,1749462714984,-3942.09431266,0.0003888,120]
[365095301,1749462714994,-481.51282197,0.0003888,120]
[365095302,1749462715003,-3859.1098,0.00038888,30]
[365095303,1749462715013,-355.0482474,0.000389,120]
[365095304,1749462715023,-150.0,0.00038933,2]
[365095305,1749462715032,-1200.0,0.00038974,31]
[365095306,1749462715041,-3223506.58186362,0.0003899,16]
[365095307,1749462715284,-776.78231321,0.0003899,16]
[365095308,1749462715296,-6746.07759937,0.0003899,16]
[365095309,1749462715313,-460.0,0.00021917,2]
[365095310,1749462715323,-787.07440956,0.0003899,16]
[365095311,1749462715338,-171.27694471,0.000199,2]
[365095312,1749462715347,-2233.63196998,0.0003899,16]
[365095313,1749462715684,-840.09,0.00018626,2]
[365095314,1749462715694,-151.0,0.00019055,2]
[365095315,1749462715703,-17.79104897,0.00019106,2]
[365095316,1749462715714,-10547.73133627,0.00019106,2]
[365095317,1749462715727,-2132.198001,0.00019106,2]
[365095318,1749462716161,-151.0,0.00019055,2]
[365095319,1749462716170,-166.68656233,0.00019106,2]
[365095320,1749462716181,-2190.52712952,0.00019106,2]
[365095321,1749462716192,-151.0,0.00019127,2]
[365095322,1749462716201,-151.0,0.00019151,2]
[365095323,1749462716211,-151.0,0.00019151,2]
[365095324,1749462716220,-151.0,0.00019165,2]
[365095325,1749462716230,-151.0,0.00019165,2]
[365095326,1749462716240,-974.05680205,0.00019482,2]
[365095327,1749462716251,-2298.44,0.00021917,2]
[365095328,1749462716261,-480.0,0.00022082,2]
[365095329,1749462716271,-2298.44,0.00022082,2]
[365095330,1749462716281,-480.0,0.00022246,2]
[365095331,1749462716292,-480.0,0.00022246,2]
[365095332,1749462716301,-1972.88357178,0.00022246,2]
[365095333,1749462716317,-325.55642822,0.00022246,2]
[365095334,1749462716327,-222.12536234,0.0002241,2]
[365095335,1749462716338,-480.0,0.0002241,2]
[365095336,1749462716348,-1597.71382609,0.0002241,2]
[365095337,1749462716369,-183.56253572,0.00019173,2]
[365095338,1749462716379,-700.72617391,0.0002241,2]
[365095339,1749462716389,-267.42301718,0.00022575,2]
[365095340,1749462716398,-480.0,0.00022575,2]
[365095341,1749462716408,-2298.44,0.00022575,2]
[365095342,1749462716420,-480.0,0.00022739,2]
[365095343,1749462716431,-2298.44,0.00022739,2]
[365095344,1749462716596,-480.0,0.00022904,2]
[365095345,1749462716607,-2298.44,0.00022904,2]
[365095346,1749462716618,-480.0,0.00023068,2]
[365095347,1749462716627,-1307.18088981,0.00023068,2]
[365095348,1749462716638,-991.25911019,0.00023068,2]
[365095349,1749462716649,-480.0,0.00023232,2]
[365095350,1749462716659,-435.99,0.00023397,2]
[365095351,1749462716669,-600.0,0.000274,2]
[365095352,1749462716678,-5000.0,0.00038356,120]
[365095353,1749462716689,-5000.0,0.00038356,120]
[365095354,1749462716699,-5000.0,0.00038356,120]
[365095355,1749462716708,-5000.0,0.00038356,120]
[365095356,1749462716718,-5000.0,0.00038356,120]
[365095357,1749462716728,-5000.0,0.00038356,120]
[365095358,1749462716737,-5000.0,0.00038356,120]
[365095359,1749462716746,-3321.30256436,0.00038356,120]
[365095360,1749462716758,-1678.69743564,0.00038356,120]
[365095361,1749462716767,-5000.0,0.00038356,120]
[365095362,1749462716777,-5000.0,0.00038356,120]
[365095363,1749462716786,-5000.0,0.00038356,120]
[365095364,1749462716795,-5000.0,0.00038356,120]
[365095365,1749462716804,-5000.0,0.00038356,120]
[365095366,1749462716814,-186323.76526166,0.0003899,16]
[365095367,1749462716825,-9237.654,0.0003899,16]
[365095368,1749462716839,-3984.71108918,0.00038356,120]
[365095369,1749462717069,-223.088,0.00018626,2]
[365095370,1749462717094,-151.0,0.00019165,2]
[365095371,1749462717105,-231.75567,0.00019165,2]
[365095372,1749462717114,-2020.52101939,0.00019246,2]
[365095373,1749462717126,-493.15239699,0.00019246,2]
[365095374,1749462717137,-6014.23872,0.00019246,2]
[365095375,1749462717153,-4532.79416725,0.00019246,2]
[365095376,1749462717336,-1994.22777446,0.00019246,2]
[365095377,1749462717345,-150.0,0.00021626,2]
[365095378,1749462717354,-480.0,0.00021917,2]
[365095379,1749462717363,-460.0,0.00022082,2]
[365095380,1749462717373,-2298.44,0.00023232,2]
[365095381,1749462717382,-2298.44,0.00023397,2]
[365095382,1749462717390,-2298.44,0.00023561,2]
[365095383,1749462717400,-2298.44,0.00023726,2]
[365095384,1749462717409,-2298.44,0.0002389,2]
[365095385,1749462717419,-2298.44,0.00024054,2]
[365095386,1749462717429,-2298.44,0.00024219,2]
[365095387,1749462717438,-2298.44,0.00024383,2]
[365095388,1749462717449,-2298.44,0.00024547,2]
[365095389,1749462717459,-2298.44,0.00024712,2]
[365095390,1749462717469,-2298.44,0.00024876,2]
[365095391,1749462717478,-600.0,0.000329,2]
[365095392,1749462717488,-1015.28891082,0.00038356,120]
[365095393,1749462717499,-5000.0,0.00038356,120]
[365095394,1749462717509,-5000.0,0.00038356,120]
[365095395,1749462717519,-5000.0,0.00038356,120]
[365095396,1749462717529,-3813.343694,0.00038356,120]
[365095397,1749462717539,-56934.59962072,0.0003899,16]
[365095401,1749462843495,8675.0,0.00017052,2]
[365095402,1749462846407,283.15,0.00013699,2]
[365095407,1749462949703,155.06,0.00014539,2]
[365095410,1749463093934,151.0,0.00017052,2]
[365095416,1749463220723,1101.59,0.00015887,2]
[365095423,1749463297279,10000.0,0.00017052,2]
[365095424,1749463314011,1963.5,0.00017052,2]
[365095440,1749463369798,200.30626315,0.00016967,2]
[365095451,1749463462409,-170.76068818,0.00017235,2]
[365095452,1749463471839,-156.81968863,0.00017235,2]
[365095453,1749463474628,-360.39005499,0.00017235,2]
[365095454,1749463477744,-308.54290644,0.00017235,2]
[365095455,1749463482287,-151.0,0.00017235,2]
[365095456,1749463484993,-277.65553523,0.00017235,2]
[365095457,1749463487387,-191.47081547,0.00017235,2]
[365095458,1749463492823,-203.76515372,0.00017235,2]
[365095459,1749463495174,-178.18102265,0.00017235,2]
[365095460,1749463497107,-167.45125612,0.00017151,2]
[365095461,1749463499417,-82.54874388,0.00017151,2]
[365095462,1749463499441,-112.94812449,0.00017235,2]
[365095463,1749463503351,-254.37976024,0.00017235,2]
[365095464,1749463505693,-407.92634861,0.00017235,2]
[365095465,1749463507834,-188.51534781,0.00017235,2]
[365095466,1749463509527,-498.7506238,0.00017235,2]
[365095467,1749463512234,-403.90807712,0.00017235,2]
[365095468,1749463513726,-615.16697196,0.00017235,2]
[365095469,1749463516376,-198.86012318,0.00017235,2]
[365095470,1749463519681,-227.19403926,0.00017235,2]
[365095471,1749463522152,-167.15,0.00017235,2]
[365095472,1749463525987,-247.79084954,0.00017322,2]
[365095473,1749463527795,-2.20915046,0.00017322,2]
[365095474,1749463527819,-150.81411775,0.00017326,2]
[365095475,1749463530892,-260.72443928,0.00017326,2]
[365095476,1749463533349,-316.5202149,0.00017326,2]
[365095477,1749463536316,-159.29,0.00017239,2]
[365095478,1749463542645,-291.23478295,0.00017239,2]
[365095479,1749463544901,-414.81201026,0.00017239,2]
[365095480,1749463546491,-490.16142912,0.00017239,2]
[365095481,1749463550099,-176.14167058,0.00017239,2]
[365095482,1749463553051,-218.39358902,0.00017239,2]
[365095483,1749463556907,-200.97259269,0.00017239,2]
[365095484,1749463560120,-239.27556072,0.00017239,2]
[365095485,1749463562318,-241.46216199,0.00017239,2]
[365095486,1749463564635,-181.31501508,0.00017239,2]
[365095487,1749463567396,-160.50276746,0.00017239,2]
[365095488,1749463569104,-198.27358741,0.00017239,2]
[365095489,1749463575114,-146.96833772,0.00017239,2]
[365095490,1749463575138,-40.40166228,0.00017326,2]
[365095491,1749463578818,-231.53956579,0.00017326,2]
[365095492,1749463578842,-135.01757556,0.00017391,2]
[365095493,1749463581808,-114.98242444,0.00017391,2]
[365095494,1749463581835,-146.39374299,0.00017402,2]
[365095495,1749463583574,-29.42625701,0.00017402,2]
[365095496,1749463583602,-129.74796657,0.00017404,2]
[365095498,1749463585656,-298.17237951,0.00017404,2]
[365095499,1749463589900,-303.78980197,0.00017404,2]
[365095500,1749463593243,-263.49478263,0.00017404,2]
[365095501,1749463596107,-204.79506932,0.00017404,2]
[365095502,1749463596130,-77.98974008,0.00017405,2]
[365095503,1749463602952,-91.95428494,0.00017405,2]
[365095504,1749463602974,-219.44571506,0.00017504,2]
[365095506,1749463605277,-158.75546221,0.00017504,2]
[365095507,1749463607450,-152.89476386,0.00017504,2]
[365095512,1749463810794,315.77,0.00013699,2]
[365095516,1749463831678,-3430.86173256,0.00017287,2]
[365095517,1749463831690,-547.78826744,0.00017287,2]
[365095518,1749463831700,-407.89620026,0.00017326,2]
[365095519,1749463831845,-539.7021969,0.00017326,2]
[365095520,1749463831859,-461.1075,0.00017326,2]
[365095521,1749463831873,-816.20425299,0.00017326,2]
[365095522,1749463831885,-1116.309453,0.00017326,2]
[365095523,1749463831897,-308.24039685,0.00017326,2]
[365095524,1749463831907,-200.0,0.00017366,2]
[365095534,1749463832124,-135.54435106,0.00017442,2]
[365095536,1749463832290,-1064.45564894,0.00017442,2]
[365095537,1749463832300,-200.0,0.00017443,2]
[365095538,1749463832310,-285.8939109,0.0001748,2]
[365095539,1749463832320,-300.0,0.00017503,2]
[365095540,1749463832330,-2219.90405887,0.00017504,2]
[365095541,1749463832340,-436.31798121,0.0001758,2]
[365095542,1749463832353,-278.5665676,0.0001758,2]
[365095543,1749463832367,-664.23369519,0.0001758,2]
[365095544,1749463832504,-902.791756,0.0001758,2]
[365095545,1749463832514,-191.67,0.00017674,2]
[365095546,1749463832523,-246.04,0.00017757,2]
[365095547,1749463832534,-300.0,0.00017804,2]
[365095548,1749463832543,-916.87,0.00017805,2]
[365095549,1749463832553,-1000.0,0.00017898,2]
[365095550,1749463832563,-93.520224,0.00017899,2]
[365095551,1749463832807,-1982.6480236,0.00017899,2]
[365095552,1749463832819,-405.61,0.00017899,2]
[365095553,1749463832831,-671.01527,0.00017899,2]
[365095554,1749463832843,-30600.6364824,0.00017899,2]
[365095555,1749463832853,-550.0,0.00017998,2]
[365095556,1749463832863,-444.44260876,0.00017999,2]
[365095557,1749463832874,-33985.09769038,0.00018,2]
[365095558,1749463832884,-1101.59,0.00018151,2]
[365095559,1749463832895,-985.69,0.00018174,2]
[365095560,1749463832905,-1542.25098813,0.00018256,2]
[365095561,1749463832914,-253.72607165,0.00018256,2]
[365095562,1749463832924,-1419.66050734,0.00018256,2]
[365095563,1749463832934,-500.0,0.00018299,2]
[365095564,1749463832944,-500.0,0.00018299,2]
[365095565,1749463832954,-500.0,0.00018299,2]
[365095566,1749463832963,-608.21290363,0.00018299,2]
[365095567,1749463832973,-367.64273941,0.00018299,2]
[365095568,1749463832983,-617.24198271,0.00018299,2]
[365095569,1749463832993,-199.92194229,0.00018299,2]
[365095570,1749463833003,-353.86309501,0.00018299,2]
[365095571,1749463833013,-180.4001333,0.00018299,2]
[365095572,1749463833024,-105665.58944778,0.000183,2]
[365095573,1749463833037,-56297.34057304,0.000183,2]
[365095574,1749463833051,-511.438934,0.000183,2]
[365095575,1749463833471,-235.33453779,0.00017269,2]
[365095579,1749463837931,-385.15802089,0.00017269,2]
[365095580,1749463838092,-9379.50744132,0.00017269,2]
[365095581,1749463838101,-500.0,0.00017998,2]
[365095582,1749463838111,-217.0242182,0.00017998,2]
[365095583,1749463838119,-500.0,0.00017998,2]
[365095584,1749463838129,-429.83171085,0.00017998,2]
[365095585,1749463838138,-500.0,0.00017998,2]
[365095586,1749463838147,-500.0,0.00017998,2]
[365095587,1749463838156,-500.0,0.00017998,2]
[365095588,1749463838165,-507.14153746,0.00017998,2]
[365095589,1749463838175,-500.0,0.00017998,2]
[365095590,1749463838185,-475.66191272,0.00017998,2]
[365095591,1749463838195,-500.0,0.00017998,2]
[365095592,1749463838205,-500.0,0.00017998,2]
[365095593,1749463838216,-195915.42104518,0.000183,2]
[365095594,1749463838225,-5106.66,0.00018356,2]
[365095595,1749463838235,-728.54,0.0001839,2]
[365095596,1749463838244,-157.37,0.000184,2]
[365095597,1749463838253,-168.86,0.00018401,2]
[365095598,1749463838263,-5244.31575154,0.000185,2]
[365095599,1749463838272,-150.0,0.00018713,2]
[365095600,1749463838287,-1400.0,0.000189,6]
[365095601,1749463838296,-1099.6006,0.00018951,2]
[365095602,1749463838306,-250.0,0.00018963,2]
[365095604,1749463838315,-250.0,0.00019015,2]
[365095606,1749463838325,-253.7260715,0.00019027,2]
[365095608,1749463838335,-52352.76785696,0.00019039,2]
[365095610,1749463838344,-250.0,0.00019058,2]
[365095612,1749463838354,-500.0,0.00019073,2]
[365095614,1749463838364,-500.0,0.00019073,2]
[365095617,1749463838374,-375.9873106,0.00019073,2]
[365095619,1749463838384,-500.0,0.00019073,2]
[365095620,1749463838393,-500.0,0.00019073,2]
[365095622,1749463838402,-500.0,0.00019073,2]
[365095624,1749463838411,-500.0,0.00019073,2]
[365095626,1749463838420,-500.0,0.00019073,2]
[365095628,1749463838430,-935.0,0.00019078,2]
[365095631,1749463838439,-231.83,0.000191,2]
[365095633,1749463838449,-420.0,0.00019108,2]
[365095635,1749463838459,-480.0,0.00019136,2]
[365095637,1749463838468,-500.0,0.00019173,2]
[365095639,1749463838478,-500.0,0.00019178,2]
[365095641,1749463838487,-553.54784747,0.00019178,2]
[365095643,1749463838497,-500.0,0.00019178,2]
[365095645,1749463838507,-500.0,0.00019178,2]
[365095647,1749463838516,-500.0,0.00019178,2]
[365095649,1749463838526,-500.0,0.00019178,2]
[365095651,1749463838535,-500.0,0.00019178,2]
[365095653,1749463838545,-500.0,0.00019178,2]
[365095655,1749463838554,-500.0,0.00019178,2]
[365095657,1749463838563,-500.0,0.00019178,2]
[365095659,1749463838572,-500.0,0.00019178,2]
[365095661,1749463838581,-500.0,0.00019178,2]
[365095663,1749463838590,-500.0,0.00019178,2]
[365095665,1749463838600,-500.0,0.00019178,2]
[365095667,1749463838609,-500.0,0.00019178,2]
[365095669,1749463838618,-500.0,0.00019178,2]
[365095671,1749463838627,-500.0,0.00019178,2]
[365095673,1749463838636,-500.0,0.00019178,2]
[365095675,1749463838645,-500.0,0.00019178,2]
[365095677,1749463838655,-500.0,0.00019178,2]
[365095679,1749463838664,-500.0,0.00019178,2]
[365095681,1749463838674,-500.0,0.00019178,2]
[365095683,1749463838683,-500.0,0.00019178,2]
[365095685,1749463838692,-500.0,0.00019178,2]
[365095687,1749463838702,-500.0,0.00019178,2]
[365095689,1749463838711,-500.0,0.00019178,2]
[365095691,1749463838721,-500.0,0.00019178,2]
[365095693,1749463838730,-500.0,0.00019178,2]
[365095695,1749463838739,-500.0,0.00019178,2]
[365095696,1749463838749,-500.0,0.00019178,2]
[365095698,1749463838759,-500.0,0.00019178,2]
[365095700,1749463838768,-500.0,0.00019178,2]
[365095702,1749463838777,-500.0,0.00019178,2]
[365095704,1749463838787,-500.0,0.00019178,2]
[365095706,1749463838796,-500.0,0.00019178,2]
[365095708,1749463838805,-500.0,0.00019178,2]
[365095710,1749463838815,-500.0,0.00019178,2]
[365095712,1749463838824,-500.0,0.00019178,2]
[365095714,1749463838833,-500.0,0.00019178,2]
[365095716,1749463838842,-500.0,0.00019178,2]
[365095718,1749463838851,-500.0,0.00019178,2]
[365095720,1749463838860,-500.0,0.00019178,2]
[365095722,1749463838869,-500.0,0.00019178,2]
[365095724,1749463838879,-500.0,0.00019178,2]
[365095726,1749463838888,-500.0,0.00019178,2]
[365095728,1749463838897,-500.0,0.00019178,2]
[365095730,1749463838906,-500.0,0.00019178,2]
[365095732,1749463838915,-500.0,0.00019178,2]
[365095734,1749463838923,-567.30478897,0.00019178,2]
[365095736,1749463838932,-500.0,0.00019178,2]
[365095738,1749463838941,-500.0,0.00019178,2]
[365095740,1749463838951,-249.46,0.00019178,2]
[365095742,1749463838960,-1000.0,0.00019492,2]
[365095744,1749463838968,-1000.0,0.00019621,2]
[365095746,1749463838977,-1000.0,0.00019621,2]
[365095748,1749463838986,-1000.0,0.00019621,2]
[365095750,1749463838995,-419.77344038,0.00019621,2]
[365095752,1749463839004,-1000.0,0.00019621,2]
[365095753,1749463839013,-741.6875011,0.00019621,2]
[365095755,1749463839023,-195.26780228,0.00019621,2]
[365095757,1749463839032,-1489.47401089,0.00019683,2]
[365095759,1749463839042,-150.0,0.00019689,2]
[365095761,1749463839051,-974.05680205,0.00019691,2]
[365095763,1749463839061,-500.0,0.00019721,2]
[365095765,1749463839070,-2003.52358345,0.0001978,2]
[365095767,1749463839079,-253.7260715,0.00019799,2]
[365095769,1749463839090,-974.05680205,0.00019899,2]
[365095771,1749463839099,-2000.0,0.000199,2]
[365095773,1749463839108,-2000.0,0.000199,2]
[365095775,1749463839116,-825.52,0.000199,31]
[365095777,1749463839124,-825.52,0.000199,31]
[365095779,1749463839132,-825.52,0.000199,31]
[365095781,1749463839142,-825.52,0.000199,31]
[365095783,1749463839150,-825.52,0.000199,31]
[365095785,1749463839159,-825.52,0.000199,31]
[365095787,1749463839167,-825.52,0.000199,31]
[365095789,1749463839175,-825.52,0.000199,31]
[365095791,1749463839184,-825.52,0.000199,31]
[365095793,1749463839192,-825.52,0.000199,31]
[365095795,1749463839200,-825.52,0.000199,31]
[365095797,1749463839210,-825.52,0.000199,31]
[365095799,1749463839219,-825.52,0.000199,31]
[365095801,1749463839228,-825.52,0.000199,31]
[365095803,1749463839238,-825.52,0.000199,31]
[365095805,1749463839247,-825.52,0.000199,31]
[365095807,1749463839256,-5800.0,0.00019966,2]
[365095809,1749463839265,-5800.0,0.00019975,2]
[365095811,1749463839274,-5800.0,0.00019983,2]
[365095814,1749463839288,-5800.0,0.00019992,2]
[365095815,1749463839297,-2000.0,0.00019999,2]
[365095817,1749463839306,-2000.0,0.00019999,2]
[365095819,1749463839315,-2000.0,0.00019999,2]
[365095821,1749463839326,-150.0,0.0002,2]
[365095823,1749463839335,-12500.0,0.0002,2]
[365095825,1749463839344,-5800.0,0.0002,2]
[365095827,1749463839353,-150.0,0.0002,2]
[365095829,1749463839365,-300.0,0.0002,2]
[365095831,1749463839375,-4000.0,0.0002,4]
[365095833,1749463839384,-150.0,0.00020082,2]
[365095835,1749463839393,-1500.0,0.00020168,2]
[365095837,1749463839403,-1617.99448218,0.00020168,2]
[365095839,1749463839412,-1500.0,0.00020168,2]
[365095841,1749463839421,-1500.0,0.00020168,2]
[365095843,1749463839430,-315.77,0.00020187,2]
[365095845,1749463839439,-300.0,0.000202,2]
[365095847,1749463839448,-805.0,0.0002023,2]
[365095849,1749463839457,-557.0,0.00020308,2]
[365095851,1749463839467,-1188.904,0.00020308,2]
[365095853,1749463839476,-926.0,0.00020308,2]
[365095855,1749463839485,-300.0,0.000204,2]
[365095857,1749463839494,-1101.59,0.00020415,2]
[365095859,1749463839503,-1542.25098807,0.00020415,2]
[365095861,1749463839513,-1957.856,0.00020443,2]
[365095863,1749463839522,-1224.202,0.00020469,2]
[365095865,1749463839531,-897.03786723,0.00020498,2]
[365095867,1749463839541,-253.7260715,0.0002057,2]
[365095869,1749463839550,-300.0,0.000206,2]
[365095871,1749463839559,-2000.0,0.00020716,2]
[365095873,1749463839569,-300.0,0.000208,2]
[365095875,1749463839578,-587.0,0.00020859,2]
[365095877,1749463839587,-1000.0,0.00020986,2]
[365095879,1749463839596,-450.0,0.00021,4]
[365095881,1749463839606,-450.0,0.000212,4]
[365095883,1749463839615,-1419.66050731,0.00021204,2]
[365095884,1749463839624,-1123.2855856,0.00021264,2]
[365095887,1749463839634,-253.7260715,0.00021341,2]
[365095889,1749463839644,-450.0,0.000214,4]
[365095890,1749463839653,-168.86,0.00021438,2]
[365095892,1749463839662,-450.0,0.000216,4]
[365095895,1749463839672,-1500.0,0.00021644,2]
[365095897,1749463839681,-1000.0,0.00021658,2]
[365095899,1749463839690,-175.82,0.00021752,2]
[365095901,1749463839699,-1000.0,0.00021773,2]
[365095902,1749463839708,-450.0,0.000218,4]
[365095904,1749463839718,-480.0,0.00021917,2]
[365095906,1749463839727,-480.0,0.00021917,2]
[365095909,1749463839737,-480.0,0.00021917,2]
[365095910,1749463839746,-587.17521137,0.00021917,2]
[365095912,1749463839755,-480.0,0.00021917,2]
[365095914,1749463839764,-480.0,0.00021917,2]
[365095916,1749463839773,-480.0,0.00021917,2]
[365095917,1749463839782,-480.0,0.00021917,2]
[365095919,1749463839792,-460.0,0.00021917,2]
[365095921,1749463839801,-480.0,0.00021917,2]
[365095923,1749463839810,-480.0,0.00021917,2]
[365095925,1749463839820,-480.0,0.00021917,2]
[365095927,1749463839829,-480.0,0.00021917,2]
[365095929,1749463839838,-480.0,0.00021917,2]
[365095931,1749463839848,-480.0,0.00021917,2]
[365095933,1749463839857,-480.0,0.00021917,2]
[365095935,1749463839866,-480.0,0.00021917,2]
[365095937,1749463839875,-373.87729206,0.00021917,2]
[365095939,1749463839885,-480.0,0.00021917,2]
[365095941,1749463839894,-480.0,0.00021917,2]
[365095943,1749463839904,-480.0,0.00021917,2]
[365095945,1749463839913,-480.0,0.00021917,2]
[365095947,1749463839923,-480.0,0.00021917,2]
[365095949,1749463839932,-480.0,0.00021917,2]
[365095951,1749463839941,-480.0,0.00021917,2]
[365095953,1749463839950,-480.0,0.00021917,2]
[365095955,1749463839959,-480.0,0.00021917,2]
[365095957,1749463839969,-295.12,0.00021917,2]
[365095959,1749463839978,-480.0,0.00021917,2]
[365095961,1749463839986,-246.44380653,0.00021917,2]
[365095963,1749463839996,-480.0,0.00021917,2]
[365095965,1749463840005,-500.0,0.00021917,2]
[365095967,1749463840014,-475.56,0.00021917,2]
[365095969,1749463840023,-556.1,0.00021917,2]
[365095971,1749463840033,-500.0,0.00021917,2]
[365095973,1749463840043,-500.0,0.00021917,2]
[365095975,1749463840051,-500.0,0.00021917,2]
[365095977,1749463840061,-480.0,0.00021917,2]
[365095979,1749463840070,-540.8,0.00021917,2]
[365095981,1749463840079,-846.98,0.00021917,2]
[365095983,1749463840088,-480.0,0.00021917,2]
[365095985,1749463840097,-460.0,0.00021917,2]
[365095987,1749463840106,-480.0,0.00021917,2]
[365095989,1749463840115,-480.0,0.00021917,2]
[365095991,1749463840124,-480.0,0.00021917,2]
[365095993,1749463840133,-460.0,0.00021917,2]
[365095995,1749463840142,-500.0,0.00021917,2]
[365095997,1749463840151,-500.0,0.00021917,2]
[365095999,1749463840160,-500.0,0.00021917,2]
[365096001,1749463840169,-605.87,0.00021917,2]
[365096003,1749463840177,-480.0,0.00021917,2]
[365096005,1749463840187,-480.0,0.00021917,2]
[365096007,1749463840196,-460.0,0.00021917,2]
[365096009,1749463840204,-399.52080426,0.00021917,2]
[365096011,1749463840213,-564.74,0.00021917,2]
[365096013,1749463840223,-480.0,0.00021917,2]
[365096015,1749463840232,-480.0,0.00021917,2]
[365096017,1749463840241,-603.01,0.00021917,2]
[365096019,1749463840250,-480.0,0.00021917,2]
[365096021,1749463840259,-838.93,0.00021917,2]
[365096022,1749463840268,-480.0,0.00021917,2]
[365096024,1749463840277,-480.0,0.00021917,2]
[365096026,1749463840289,-480.0,0.00021917,2]
[365096028,1749463840299,-152.2442064,0.00021917,2]
[365096030,1749463840308,-480.0,0.00021917,2]
[365096032,1749463840317,-480.0,0.00021917,2]
[365096034,1749463840328,-1007.11,0.00021917,2]
[365096036,1749463840338,-480.0,0.00021917,2]
[365096039,1749463840348,-1427.79,0.00021945,30]
[365096041,1749463840359,-4000.0,0.00022,4]
[365096043,1749463840368,-666.0,0.00022081,2]
[365096045,1749463840378,-480.0,0.00022082,2]
[365096047,1749463840387,-480.0,0.00022082,2]
[365096049,1749463840396,-480.0,0.00022082,2]
[365096051,1749463840405,-480.0,0.00022082,2]
[365096052,1749463840414,-480.0,0.00022082,2]
[365096053,1749463840424,-480.0,0.00022082,2]
[365096054,1749463840433,-480.0,0.00022082,2]
[365096055,1749463840442,-192.00556284,0.00022082,2]
[365096056,1749463840451,-480.0,0.00022082,2]
[365096057,1749463840459,-480.0,0.00022082,2]
[365096058,1749463840468,-480.0,0.00022082,2]
[365096059,1749463840477,-259.35,0.00022082,2]
[365096060,1749463840486,-480.0,0.00022082,2]